bitfinex/quotes_BTCUSD_20241119
["timestamp","ask_amount","ask_price","bid_price","bid_amount"]
[1732022915499,0.5409,92367.0,92355.0,0.01627251]
[1732022915727,0.649164,92367.0,92357.0,0.01]
[1732022915948,0.21653,92366.0,92358.0,0.00695]
[1732022916164,0.108266,92365.0,92358.0,0.00695]
[1732022916368,0.108267,92364.0,92358.0,0.00695]
[1732022916579,0.108267,92364.0,92359.0,0.015835]
[1732022916834,0.108268,92363.0,92359.0,0.015835]
[1732022917050,0.04318671,92367.0,92366.0,0.01]
[1732022917484,0.108259,92371.0,92366.0,0.01]
[1732022917699,0.108259,92371.0,92364.0,0.01]
[1732022917700,0.216513,92373.0,92368.0,0.01]
[1732022917926,0.1627251,92376.0,92368.0,0.01]
[1732022917927,0.216515,92372.0,92368.0,0.01]
[1732022918167,0.216515,92372.0,92336.0,0.0788]
[1732022918168,0.108298,92337.0,92336.0,0.0788]
[1732022918391,0.21655,92358.0,92336.0,0.0788]
[1732022918392,0.216591,92340.0,92336.0,0.0788]
[1732022918634,0.108298,92337.0,92336.0,0.0788]
[1732022918846,0.108298,92337.0,92336.0,0.02415251]
[1732022919057,0.108306,92331.0,92328.0,0.0816]
[1732022919934,0.32491,92333.0,92332.0,0.01]
[1732022920152,0.108306,92331.0,92328.0,0.0816]
[1732022920339,0.324911,92333.0,92330.0,0.01]
[1732022920554,0.216607,92333.0,92329.0,0.01407]
[1732022920774,0.108305,92331.0,92330.0,0.016477]
[1732022920996,0.216604,92335.0,92334.0,0.01]
[1732022921233,0.216597,92337.0,92335.0,0.01]
[1732022921449,0.216596,92338.0,92335.0,0.01]
[1732022921450,0.1083,92336.0,92335.0,0.01]
[1732022921660,0.1083,92336.0,92335.0,0.02073177]
[1732022921922,0.10906255,92345.0,92335.0,0.02073177]
[1732022921923,0.10829,92345.0,92335.0,0.02073177]
[1732022922139,0.10014832,92371.0,92343.0,0.01]
[1732022922364,0.10014832,92371.0,92344.0,0.0791]
[1732022922365,0.04397216,92345.0,92344.0,0.0791]
[1732022922586,0.27178765,92359.0,92344.0,0.18739]
[1732022922811,0.108289,92345.0,92331.0,0.01]
[1732022923022,0.108295,92340.0,92339.0,0.1627251]
[1732022923236,0.108296,92339.0,92338.0,0.01]
[1732022923459,0.108299,92337.0,92336.0,0.01]
[1732022923674,0.12602799,92351.0,92336.0,0.01]
[1732022923675,0.21655,92357.0,92339.0,0.01]
[1732022923904,0.108288,92347.0,92340.0,0.02338921]
[1732022924343,0.10906255,92357.0,92346.0,0.01]
[1732022924344,0.108278,92355.0,92346.0,0.01]
[1732022924571,0.108279,92354.0,92347.0,0.01416782]
[1732022924781,0.108279,92354.0,92346.0,0.01]
[1732022924782,0.3792691,92360.0,92346.0,0.01]
[1732022925021,0.4241778,92360.0,92347.0,0.15369762]
[1732022925229,0.108275,92357.0,92347.0,0.15369762]
[1732022925441,0.108277,92356.0,92347.0,0.15369762]
[1732022925673,0.108274,92359.0,92351.0,0.01]
[1732022925896,0.2614527,92360.0,92354.0,0.01]
[1732022925897,0.0449087,92360.0,92354.0,0.01]
[1732022926106,0.0449087,92360.0,92355.0,0.108277]
[1732022926313,0.10014832,92371.0,92360.0,0.01]
[1732022926520,0.10014832,92371.0,92362.0,0.0833]
[1732022926521,0.108266,92365.0,92362.0,0.0833]
[1732022926761,0.108264,92367.0,92362.0,0.0833]
[1732022926992,0.216524,92369.0,92363.0,0.00933]
[1732022927231,0.108264,92367.0,92364.0,0.0210905]
[1732022927489,0.14347356,92371.0,92352.0,0.092]
[1732022927490,0.108277,92355.0,92352.0,0.092]
[1732022927700,0.12602799,92365.0,92352.0,0.082]
[1732022927701,0.10828,92353.0,92352.0,0.082]
[1732022927944,0.12602799,92357.0,92343.0,0.0813]
[1732022928184,0.108287,92347.0,92343.0,0.0813]
[1732022928638,0.216567,92350.0,92343.0,0.0813]
[1732022928860,0.10829,92344.0,92343.0,0.0813]
[1732022929795,0.108289,92346.0,92343.0,0.0813]
[1732022930022,0.108289,92345.0,92343.0,0.0813]
[1732022930241,0.10829,92344.0,92343.0,0.0813]
[1732022930465,0.108301,92335.0,92334.0,0.0775]
[1732022930706,0.108301,92335.0,92334.0,0.10928997]
[1732022930965,0.108301,92335.0,92334.0,0.10252251]
[1732022931227,0.108301,92335.0,92334.0,0.0775]
[1732022931423,0.108301,92335.0,92326.0,0.055]
[1732022931424,0.216599,92337.0,92320.0,0.07331613]
[1732022931666,0.216599,92337.0,92324.0,0.1627251]
[1732022931667,0.2166,92336.0,92324.0,0.1627251]
[1732022931898,0.15270714,92349.0,92325.0,0.03032271]
[1732022932114,0.216593,92339.0,92326.0,0.00676788]
[1732022932589,0.10906255,92348.0,92325.0,0.02355483]
[1732022932590,0.216605,92334.0,92327.0,0.00676788]
[1732022932805,0.216605,92334.0,92328.0,0.00676788]
[1732022932806,0.108308,92330.0,92328.0,0.00676788]
[1732022933014,0.324895,92337.0,92329.0,0.00676788]
[1732022933241,0.216597,92337.0,92317.0,0.01082839]
[1732022933485,0.216604,92334.0,92318.0,0.00676793]
[1732022933762,0.10831,92327.0,92326.0,0.016]
[1732022934197,0.216618,92329.0,92316.0,0.1627251]
[1732022934415,0.002,92337.0,92317.0,0.04921212]
[1732022934667,0.216615,92330.0,92318.0,0.00676863]
[1732022934895,0.04500689,92337.0,92319.0,0.03618333]
[1732022934896,0.108314,92324.0,92319.0,0.03618333]
[1732022935164,0.108314,92324.0,92320.0,0.03895382]
[1732022935392,0.108314,92324.0,92321.0,0.00676863]
[1732022935626,0.108314,92324.0,92322.0,0.00676863]
[1732022935882,0.108314,92324.0,92323.0,0.00676863]
[1732022936132,0.216624,92326.0,92316.0,0.04748791]
[1732022936373,0.216624,92326.0,92317.0,0.00676863]
[1732022936601,0.216624,92326.0,92316.0,0.04071928]
[1732022936602,0.108315,92324.0,92318.0,0.00676863]
[1732022936821,0.108315,92324.0,92315.0,0.0805]
[1732022936822,0.108315,92324.0,92319.0,0.00676863]
[1732022937039,0.216616,92329.0,92320.0,0.00676863]
[1732022937321,0.216607,92333.0,92321.0,0.00676863]
[1732022937540,0.216604,92334.0,92322.0,0.00676863]
[1732022937541,0.108314,92324.0,92322.0,0.00676863]
[1732022937758,0.108314,92324.0,92323.0,0.00676863]
[1732022938889,0.12602799,92335.0,92323.0,0.00676863]
[1732022939090,0.108313,92325.0,92324.0,0.00676863]
[1732022941371,0.15181514,92325.0,92324.0,0.00676863]
[1732022943711,0.216648,92316.0,92305.0,0.0811]
[1732022943926,0.324971,92316.0,92315.0,0.01083068]
[1732022944164,0.108325,92314.0,92313.0,0.01759985]
[1732022944380,0.216642,92318.0,92313.0,0.01759983]
[1732022944639,0.216642,92318.0,92305.0,0.0811]
[1732022944640,0.216644,92317.0,92314.0,0.01759983]
[1732022944849,0.108323,92316.0,92315.0,0.01759983]
[1732022945082,0.21663,92323.0,92315.0,0.01759983]
[1732022945294,0.108322,92318.0,92316.0,0.01759983]
[1732022945529,0.21664,92319.0,92305.0,0.0811]
[1732022945761,0.108325,92314.0,92313.0,0.01759945]
[1732022945978,0.23435299,92314.0,92313.0,0.01759945]
[1732022946191,0.23435299,92314.0,92305.0,0.0811]
[1732022946192,0.108327,92313.0,92305.0,0.0811]
[1732022946413,0.108327,92313.0,92312.0,0.0084798]
[1732022946700,0.39585642,92313.0,92312.0,0.00677]
[1732022946946,0.39585642,92313.0,92302.0,0.0017084]
[1732022946947,0.108338,92303.0,92302.0,0.0017084]
[1732022947652,0.216671,92306.0,92302.0,0.0017084]
[1732022947876,0.108338,92303.0,92302.0,0.0017084]
[1732022949715,0.108338,92303.0,92290.0,0.0017086]
[1732022949716,0.21668,92302.0,92290.0,0.0017086]
[1732022949982,0.108352,92291.0,92290.0,0.0017086]
[1732022951481,0.108352,92291.0,92290.0,6e-07]
[1732022951482,0.21741455,92291.0,92290.0,6e-07]
[1732022951751,0.21741455,92291.0,92250.0,0.0017104]
[1732022951752,0.1,92274.0,92266.0,0.01083707]
[1732022951999,0.108386,92262.0,92255.0,0.1627251]
[1732022952207,0.108386,92262.0,92250.0,0.0017104]
[1732022952422,0.108386,92262.0,92261.0,0.0796104]
[1732022952676,0.108386,92262.0,92261.0,0.09224144]
[1732022953146,0.15133207,92262.0,92261.0,0.09224144]
[1732022955551,0.15333207,92262.0,92261.0,0.09224144]
[1732022956170,0.15333207,92262.0,92261.0,0.01434144]
[1732022956425,0.15333207,92262.0,92261.0,0.0017104]
[1732022960758,0.15337207,92262.0,92261.0,0.0017104]
[1732022962570,0.04498607,92262.0,92261.0,0.0017104]
[1732022962785,0.15337207,92262.0,92261.0,0.0017104]
[1732022966272,0.26243462,92262.0,92261.0,0.0017104]
[1732022969168,0.15337207,92262.0,92261.0,0.0017104]
[1732022969611,0.26243462,92262.0,92261.0,0.0017104]
[1732022969822,0.38846261,92262.0,92261.0,0.0017104]
[1732022970084,0.27940006,92262.0,92261.0,0.0017104]
[1732022971875,0.15337207,92262.0,92261.0,0.0017104]
[1732022975958,0.15337207,92262.0,92261.0,0.00848422]
[1732022976182,0.15337207,92262.0,92261.0,0.08986264]
[1732022977538,0.108426,92262.0,92261.0,0.08986264]
[1732022977739,0.108386,92262.0,92261.0,0.08986264]
[1732022977953,0.15222752,92262.0,92261.0,0.08986264]
[1732022980546,0.15322752,92262.0,92261.0,0.09486264]
[1732022982770,0.15322752,92262.0,92261.0,0.01348422]
[1732022982771,0.27925551,92262.0,92261.0,0.01348422]
[1732022983002,0.37925551,92262.0,92261.0,0.01348422]
[1732022983212,0.61434605,92262.0,92261.0,0.0067104]
[1732022983449,0.61434605,92262.0,92251.0,0.0004]
[1732022983450,0.108398,92252.0,92251.0,0.0004]
[1732022983652,0.23442599,92252.0,92251.0,0.0004]
[1732022983939,0.23442599,92252.0,92251.0,0.0071752]
[1732022984114,0.23442599,92252.0,92251.0,0.0004]
[1732022984351,0.33442599,92252.0,92251.0,0.0004]
[1732022984779,0.34842599,92252.0,92251.0,0.003113]
[1732022985198,0.122398,92252.0,92251.0,0.003113]
[1732022985399,0.122398,92252.0,92251.0,0.081913]
[1732022985628,0.122398,92252.0,92251.0,0.09027534]
[1732022986325,0.16687529,92252.0,92251.0,0.09027534]
[1732022987248,0.15287529,92252.0,92251.0,0.08927534]
[1732022987728,0.15787529,92252.0,92251.0,0.09027534]
[1732022988005,0.15787529,92252.0,92233.0,0.01]
[1732022988006,0.23395778,92252.0,92202.0,0.0829]
[1732022988250,0.23395778,92252.0,92222.0,0.1627251]
[1732022988251,0.208432,92223.0,92222.0,0.1627251]
[1732022988479,0.208432,92223.0,92222.0,0.17899761]
[1732022988480,0.108432,92223.0,92222.0,0.17899761]
[1732022988670,0.108432,92223.0,92222.0,0.01627251]
[1732022991184,0.208432,92223.0,92222.0,0.001]
[1732022992774,0.1,92223.0,92222.0,0.001]
[1732022993002,0.208432,92223.0,92222.0,0.001]
[1732022993421,0.22959338,92223.0,92222.0,0.001]
[1732022994115,0.22959338,92223.0,92211.0,0.0004]
[1732022994116,0.108445,92212.0,92211.0,0.0004]
[1732022994328,0.108445,92212.0,92211.0,0.01688369]
[1732022994575,0.108445,92212.0,92211.0,0.0004]
[1732022994815,0.0842767,92223.0,92211.0,0.0004]
[1732022994816,0.216867,92222.0,92213.0,0.0466]
[1732022995027,0.0842767,92223.0,92213.0,0.0466]
[1732022995028,0.108439,92218.0,92214.0,0.01239118]
[1732022995254,0.1627251,92221.0,92214.0,0.01239118]
[1732022995685,0.108442,92215.0,92214.0,0.01239118]
[1732022996122,0.02116138,92223.0,92214.0,0.01239118]
[1732022996342,0.1627251,92222.0,92215.0,0.0146303]
[1732022996555,0.1627251,92221.0,92215.0,0.0146303]
[1732022996763,0.216867,92222.0,92215.0,0.0146303]
[1732022996989,0.10844,92217.0,92215.0,0.0146303]
[1732022997204,0.10844,92217.0,92216.0,0.03153664]
[1732022997437,0.108431,92224.0,92216.0,0.03153664]
[1732022997638,0.108436,92221.0,92216.0,0.0315366]
[1732022997874,0.001,92218.0,92217.0,0.05071318]
[1732022998299,0.216874,92220.0,92217.0,0.05071318]
[1732022998516,0.108438,92218.0,92214.0,0.11077595]
[1732022998806,0.108438,92218.0,92215.0,0.00677627]
[1732022999015,0.216874,92220.0,92215.0,0.00677627]
[1732022999237,0.12602799,92221.0,92216.0,0.006]
[1732022999444,0.12602799,92221.0,92216.0,0.040991]
[1732022999667,0.12602799,92221.0,92216.0,0.15005355]
[1732022999877,0.12602799,92221.0,92217.0,0.108439]
[1732023000107,0.108439,92217.0,92216.0,0.15005355]
[1732023000331,0.108439,92217.0,92216.0,0.006]
[1732023000801,0.216865,92223.0,92216.0,0.22350255]
[1732023001084,0.216865,92223.0,92209.0,0.0117118]
[1732023001085,0.0438,92194.0,92151.0,0.29147188]
[1732023001332,0.23451999,92172.0,92171.0,0.0004]
[1732023001551,0.12602799,92176.0,92151.0,0.0004]
[1732023001765,0.108508,92159.0,92151.0,0.0501]
[1732023002240,0.108508,92159.0,92158.0,0.00849249]
[1732023002460,0.25162653,92159.0,92158.0,0.001713]
[1732023002960,0.5489989,92159.0,92158.0,0.001713]
[1732023003177,0.5589989,92159.0,92158.0,0.001713]
[1732023003399,0.5689989,92159.0,92158.0,0.001713]
[1732023003618,0.5589989,92159.0,92158.0,0.001713]
[1732023004123,0.5589989,92159.0,92125.0,0.65064278]
[1732023004124,0.208563,92112.0,92075.0,0.65064278]
[1732023004369,0.208563,92112.0,92069.0,0.0195166]
[1732023004370,0.208596,92084.0,92069.0,0.0195166]
[1732023004578,0.218596,92084.0,92083.0,0.08490357]
[1732023004819,0.228596,92084.0,92083.0,0.08490357]
[1732023005296,0.228596,92084.0,92069.0,0.0195166]
[1732023005297,0.10861,92072.0,92069.0,0.0195166]
[1732023005537,0.50598237,92072.0,92069.0,0.0195166]
[1732023006204,0.29691982,92072.0,92071.0,0.01738]
[1732023006489,0.29691982,92072.0,92033.0,0.00803324]
[1732023006490,0.01,92060.0,92033.0,0.00803324]
[1732023006711,0.01,92060.0,92010.0,0.03667772]
[1732023006712,0.65064278,92051.0,92034.0,0.11584979]
[1732023006921,0.65064278,92039.0,92035.0,0.00678724]
[1732023007129,0.01,92042.0,92036.0,0.00678724]
[1732023007396,0.01,92042.0,92014.0,0.01085959]
[1732023007397,0.65064278,92041.0,92037.0,0.00678724]
[1732023007623,0.65064278,92041.0,92020.0,0.217343]
[1732023007624,0.56164278,92041.0,92038.0,0.00678724]
[1732023007824,0.56164278,92041.0,92039.0,0.00678724]
[1732023008036,0.56164278,92041.0,92022.0,0.01085959]
[1732023008037,0.57064278,92041.0,92040.0,0.00678724]
[1732023008256,0.57064278,92041.0,92021.0,0.02447095]
[1732023008257,0.01,92028.0,92023.0,0.04187687]
[1732023008476,0.66970533,92041.0,92024.0,0.00678905]
[1732023008477,0.01,92025.0,92024.0,0.00678905]
[1732023008925,0.01,92019.0,92009.0,0.00678921]
[1732023009190,0.01,92027.0,92020.0,0.108671]
[1732023009413,0.01,92027.0,92013.0,0.21736]
[1732023009650,0.01,92027.0,92014.0,0.06311205]
[1732023009889,0.02,92043.0,92037.0,0.108651]
[1732023010134,0.16301424,92048.0,92011.0,0.1]
[1732023010135,0.16301424,92048.0,92047.0,0.10864]
[1732023010606,0.108622,92063.0,92039.0,0.40560682]
[1732023010607,0.01,92062.0,92049.0,0.217274]
[1732023010839,0.01,92067.0,92049.0,0.217275]
[1732023011075,0.16301424,92070.0,92049.0,0.217275]
[1732023011076,0.16301424,92070.0,92069.0,0.108614]
[1732023011595,0.16301424,92082.0,92081.0,0.1086]
[1732023011836,0.0473,92107.0,92081.0,0.1086]
[1732023011837,0.16301424,92090.0,92089.0,0.10859]
[1732023012076,0.16301424,92090.0,92089.0,0.40596237]
[1732023012532,0.16301424,92101.0,92100.0,0.108577]
[1732023012789,0.17301424,92101.0,92100.0,0.108577]
[1732023013015,0.17301424,92101.0,92085.0,0.28703077]
[1732023013016,0.17501424,92101.0,92075.0,0.123]
[1732023013234,0.012,92101.0,92097.0,0.10858]
[1732023013475,0.0215576,92113.0,92076.0,0.10906255]
[1732023013476,0.17301424,92106.0,92081.0,0.217199]
[1732023013701,0.17301424,92106.0,92105.0,0.108571]
[1732023013928,0.17301424,92106.0,92105.0,0.1411428]
[1732023014200,0.01,92111.0,92110.0,0.108565]
[1732023014446,0.01,92108.0,92106.0,0.108569]
[1732023014681,0.01,92108.0,92107.0,0.108569]
[1732023015157,0.01,92108.0,92106.0,0.03377602]
[1732023015158,0.01,92113.0,92108.0,0.217135]
[1732023015391,0.5409,92136.0,92087.0,0.0751]
[1732023015392,0.01,92123.0,92109.0,0.0250911]
[1732023015620,0.01,92123.0,92121.0,0.108552]
[1732023015621,0.00389889,92122.0,92121.0,0.108552]
[1732023015845,0.00389889,92122.0,92121.0,0.1194072]
[1732023016534,0.05593494,92122.0,92121.0,0.1194072]
[1732023017928,0.05593494,92122.0,92121.0,0.1254072]
[1732023018853,0.05593494,92122.0,92121.0,0.23446975]
[1732023019320,0.05593494,92122.0,92121.0,0.35746975]
[1732023019788,0.00389889,92122.0,92121.0,0.43796975]
[1732023020002,0.00389889,92122.0,92121.0,0.43196975]
[1732023020233,0.00589889,92122.0,92121.0,0.43196975]
[1732023020718,0.00389889,92122.0,92121.0,0.43196975]
[1732023020954,0.16301424,92137.0,92136.0,0.108535]
[1732023021188,0.16341424,92149.0,92136.0,0.108535]
[1732023021189,0.16341424,92149.0,92136.0,0.51909332]
[1732023021391,0.0117146,92171.0,92163.0,0.108503]
[1732023021392,0.04484045,92171.0,92163.0,0.108503]
[1732023021619,0.0017146,92171.0,92163.0,0.1193533]
[1732023022099,0.0017146,92171.0,92168.0,0.108497]
[1732023022824,0.09812884,92183.0,92180.0,0.108482]
[1732023023064,0.01,92177.0,92137.0,0.217065]
[1732023023311,0.01,92177.0,92107.0,0.0485]
[1732023023312,0.108525,92144.0,92143.0,0.16301424]
[1732023023539,0.10906255,92172.0,92143.0,0.16301424]
[1732023023767,0.10906255,92172.0,92151.0,0.108516]
[1732023023768,0.108505,92161.0,92151.0,0.108516]
[1732023024000,0.217005,92164.0,92123.0,0.16301424]
[1732023024001,0.02,92162.0,92155.0,0.108512]
[1732023024223,0.16301424,92163.0,92154.0,0.217027]
[1732023024427,0.1,92168.0,92165.0,0.1085]
[1732023024428,0.0431523,92166.0,92165.0,0.1085]
[1732023024709,0.17640395,92168.0,92158.0,0.0008573]
[1732023024710,0.17301424,92168.0,92158.0,0.0008573]
[1732023024915,0.0017146,92171.0,92158.0,0.0008573]
[1732023024916,0.01,92169.0,92168.0,0.108497]
[1732023025148,0.01,92169.0,92160.0,0.217013]
[1732023025149,0.0017146,92171.0,92169.0,0.0108497]
[1732023025371,0.0017146,92171.0,92158.0,0.0008573]
[1732023025372,0.0017146,92171.0,92168.0,0.108497]
[1732023025592,0.0017146,92171.0,92170.0,0.108495]
[1732023027217,0.01,92162.0,92141.0,0.217057]
[1732023027426,0.01,92162.0,92126.0,0.0767]
[1732023027427,0.118508,92159.0,92144.0,0.00677946]
[1732023027844,0.118508,92159.0,92141.0,0.217057]
[1732023028074,0.118508,92159.0,92144.0,0.108525]
[1732023028292,0.00339041,92159.0,92150.0,0.108518]
[1732023028505,0.01,92162.0,92153.0,0.108514]
[1732023028736,0.01,92163.0,92159.0,0.01093713]
[1732023029452,0.01,92163.0,92140.0,0.217059]
[1732023029453,0.108508,92159.0,92140.0,0.217059]
[1732023029690,0.12189816,92159.0,92158.0,0.0018573]
[1732023030347,0.13189816,92159.0,92158.0,0.0018573]
[1732023030581,0.24096071,92159.0,92158.0,0.0018573]
[1732023031027,0.13732243,92159.0,92158.0,0.0018573]
[1732023031243,0.128508,92159.0,92158.0,0.0018573]
[1732023031479,0.13732387,92159.0,92158.0,0.0008573]
[1732023031970,0.24638642,92159.0,92158.0,0.0008573]
[1732023032700,0.53640066,92159.0,92158.0,0.0028573]
[1732023032910,0.39338642,92159.0,92158.0,0.001]
[1732023033126,0.39338642,92159.0,92134.0,0.16301424]
[1732023033127,0.118536,92135.0,92134.0,0.16301424]
[1732023033368,0.12192672,92135.0,92134.0,0.16301424]
[1732023033556,0.12192672,92135.0,92113.0,0.38013724]
[1732023033557,0.01,92134.0,92113.0,0.38013724]
[1732023033794,0.108543,92129.0,92125.0,0.00678255]
[1732023034016,0.01,92134.0,92114.0,0.217122]
[1732023034017,0.108546,92126.0,92115.0,0.00678255]
[1732023034267,0.108544,92128.0,92119.0,0.108555]
[1732023034519,0.00339134,92131.0,92120.0,0.11533574]
[1732023034747,0.16301424,92132.0,92115.0,0.32618155]
[1732023034748,0.00339134,92130.0,92121.0,0.00678274]
[1732023034953,0.217086,92129.0,92121.0,0.01158453]
[1732023035180,0.108546,92127.0,92121.0,0.01158453]
[1732023035387,0.108546,92127.0,92122.0,0.03041187]
[1732023035629,0.108549,92124.0,92122.0,0.03041187]
[1732023035851,0.108547,92126.0,92123.0,0.01158453]
[1732023036274,0.217086,92129.0,92123.0,0.01158453]
[1732023036511,0.217086,92129.0,92124.0,0.01261405]
[1732023036512,0.108546,92127.0,92124.0,0.01261405]
[1732023036722,0.00339145,92126.0,92123.0,0.01158453]
[1732023036929,0.108546,92127.0,92124.0,0.01209943]
[1732023037113,0.108546,92127.0,92123.0,0.01158453]
[1732023037580,0.00339143,92126.0,92123.0,0.01158453]
[1732023037794,0.00339143,92126.0,92121.0,0.0008578]
[1732023037795,0.118551,92122.0,92121.0,0.0008578]
[1732023038030,0.128551,92122.0,92121.0,0.0008578]
[1732023038257,0.13397615,92122.0,92121.0,0.0008578]
[1732023039374,0.48558913,92122.0,92121.0,8e-07]
[1732023039619,0.108583,92095.0,92094.0,0.16301424]
[1732023039864,0.118583,92095.0,92094.0,0.16301424]
[1732023040109,0.118583,92095.0,92094.0,0.01630142]
[1732023040110,0.12401057,92095.0,92094.0,0.01630142]
[1732023040322,0.01,92089.0,92073.0,0.16301424]
[1732023040531,0.108591,92088.0,92073.0,0.16301424]
[1732023040742,0.108607,92075.0,92062.0,0.15897296]
[1732023040923,0.108607,92075.0,92066.0,0.108617]
[1732023040924,0.00542757,92074.0,92066.0,0.108617]
[1732023041187,0.108607,92075.0,92067.0,0.10906255]
[1732023041433,0.00542913,92073.0,92067.0,0.10906255]
[1732023041647,0.11403913,92073.0,92067.0,0.10906255]
[1732023041915,0.108613,92070.0,92067.0,0.10906255]
[1732023042132,0.17301424,92087.0,92061.0,0.189623]
[1732023042133,0.00511636,92090.0,92071.0,0.023]
[1732023042337,0.00511636,92090.0,92068.0,0.24023]
[1732023042338,0.16301424,92092.0,92089.0,0.217179]
[1732023042561,0.00542887,92089.0,92076.0,0.29734058]
[1732023042782,0.00542887,92091.0,92078.0,0.023]
[1732023043003,0.16301424,92092.0,92077.0,0.02569498]
[1732023043004,0.005428,92090.0,92077.0,0.02569498]
[1732023043223,0.01,92087.0,92064.0,0.108619]
[1732023043495,0.108608,92074.0,92065.0,0.10906255]
[1732023043710,0.005428,92073.0,92071.0,0.021]
[1732023044174,0.16301424,92079.0,92065.0,0.21768055]
[1732023044175,0.005428,92072.0,92065.0,0.10906255]
[1732023044408,0.005428,92071.0,92065.0,0.21768055]
[1732023044674,0.18301424,92069.0,92042.0,0.0762]
[1732023044902,0.18301424,92069.0,92051.0,0.10906255]
[1732023044903,0.108626,92059.0,92051.0,0.10906255]
[1732023045120,0.005428,92068.0,92051.0,0.10906255]
[1732023045121,0.217233,92067.0,92051.0,0.10906255]
[1732023045330,0.00543019,92066.0,92052.0,0.217268]
[1732023045574,0.16301424,92067.0,92053.0,0.10906255]
[1732023045575,0.00543019,92065.0,92053.0,0.10906255]
[1732023045851,0.108626,92059.0,92053.0,0.10906255]
[1732023046067,0.108626,92059.0,92052.0,0.108633]
[1732023046068,0.108628,92058.0,92048.0,0.108638]
[1732023046287,0.217206,92079.0,92054.0,0.10906255]
[1732023046514,0.16301424,92070.0,92069.0,0.108614]
[1732023046733,0.17301424,92082.0,92069.0,0.10906255]
[1732023046947,0.17301424,92082.0,92055.0,0.11090626]
[1732023046948,0.16301424,92072.0,92070.0,0.01090626]
[1732023047219,0.217194,92084.0,92070.0,0.217226]
[1732023047426,0.03478792,92087.0,92053.0,0.022]
[1732023047427,0.01,92072.0,92053.0,0.022]
[1732023047640,0.01,92072.0,92050.0,0.16301424]
[1732023047887,0.00542961,92071.0,92068.0,0.108614]
[1732023048114,0.002,92079.0,92071.0,0.217222]
[1732023048329,0.002,92079.0,92060.0,0.1]
[1732023048330,0.002,92079.0,92078.0,0.108603]
[1732023048594,0.002,92079.0,92078.0,0.21766555]
[1732023048809,0.002,92079.0,92078.0,0.34066555]
[1732023049047,0.16301424,92117.0,92078.0,0.34066555]
[1732023049048,0.00542824,92099.0,92091.0,0.131588]
[1732023049258,0.00542824,92101.0,92100.0,0.131577]
[1732023049510,0.00542824,92108.0,92101.0,0.131576]
[1732023049753,0.16301424,92117.0,92101.0,0.24063855]
[1732023049754,0.10856,92115.0,92101.0,0.24063855]
[1732023049987,0.16301424,92117.0,92101.0,0.24063855]
[1732023049988,0.16301424,92117.0,92110.0,0.108565]
[1732023050229,0.16301424,92117.0,92111.0,0.10906255]
[1732023050448,0.16301424,92117.0,92098.0,0.217158]
[1732023050449,0.217119,92115.0,92099.0,0.217157]
[1732023050705,0.0033918,92114.0,92084.0,0.16301424]
[1732023050937,0.0033918,92114.0,92085.0,0.16301424]
[1732023050938,0.108594,92086.0,92085.0,0.16301424]
[1732023051165,0.108594,92086.0,92080.0,0.108601]
[1732023051166,0.01,92093.0,92073.0,0.108609]
[1732023051393,0.01,92093.0,92067.0,0.217231]
[1732023051394,0.217198,92082.0,92075.0,0.10906255]
[1732023051645,0.01,92091.0,92065.0,0.217236]
[1732023051852,0.01,92091.0,92062.0,0.1282]
[1732023051853,0.21719,92085.0,92068.0,0.10906255]
[1732023052102,0.217195,92083.0,92068.0,0.10906255]
[1732023052327,0.16301424,92087.0,92068.0,0.10906255]
[1732023052328,0.108605,92077.0,92068.0,0.21767755]
[1732023052560,0.2172,92081.0,92069.0,0.217228]
[1732023052794,0.2172,92081.0,92061.0,0.217247]
[1732023052795,0.16301424,92071.0,92046.0,0.0789]
[1732023053027,0.108612,92071.0,92054.0,0.16301424]
[1732023053253,0.01,92081.0,92068.0,0.108614]
[1732023053254,0.108607,92075.0,92068.0,0.108614]
[1732023053539,0.27162524,92072.0,92068.0,0.10906255]
[1732023053763,0.01,92075.0,92048.0,0.217275]
[1732023053995,0.108621,92063.0,92057.0,0.108628]
[1732023054235,0.217216,92074.0,92058.0,0.10906255]
[1732023054236,0.00339359,92074.0,92058.0,0.10906255]
[1732023054469,0.00339359,92074.0,92047.0,0.0008573]
[1732023054470,0.01,92065.0,92059.0,0.01090626]
[1732023054730,0.217242,92063.0,92053.0,0.10906255]
[1732023054989,0.01,92064.0,92054.0,0.01107773]
[1732023055229,0.10863,92055.0,92054.0,0.01107773]
[1732023055495,0.01,92064.0,92048.0,0.108638]
[1732023055706,0.01,92064.0,92051.0,0.1094924]
[1732023055707,0.108629,92057.0,92051.0,0.1094924]
[1732023055929,0.220638,92062.0,92051.0,0.0008574]
[1732023056156,0.01,92064.0,92051.0,0.0008574]
[1732023056384,0.01,92064.0,92052.0,0.10906255]
[1732023056643,0.01,92064.0,92060.0,0.108624]
[1732023056889,0.01,92064.0,92059.0,0.108625]
[1732023056890,0.16301424,92062.0,92059.0,0.108625]
[1732023057110,0.217258,92057.0,92051.0,0.0008574]
[1732023057354,0.01,92064.0,92051.0,0.10991995]
[1732023057569,0.01,92064.0,92051.0,0.21855495]
[1732023057570,0.10863,92056.0,92051.0,0.21855495]
[1732023057792,0.16301424,92062.0,92051.0,0.21855495]
[1732023058010,0.01,92058.0,92051.0,0.0008574]
[1732023058229,0.108634,92052.0,92051.0,0.0008574]
[1732023058668,0.107634,92052.0,92051.0,0.0008574]
[1732023058890,0.108632,92054.0,92051.0,0.0008574]
[1732023059109,0.217259,92056.0,92051.0,0.0008574]
[1732023059110,0.108634,92052.0,92051.0,0.0008574]
[1732023059340,0.01,92058.0,92051.0,0.0008574]
[1732023059563,0.02,92058.0,92051.0,0.0018574]
[1732023060067,0.217261,92056.0,92051.0,0.0008574]
[1732023060289,0.01,92054.0,92051.0,0.0018574]
[1732023060521,0.01,92054.0,92053.0,0.108633]
[1732023060747,0.217191,92085.0,92053.0,0.108633]
[1732023060748,0.01339405,92071.0,92055.0,0.217261]
[1732023061019,0.38021224,92082.0,92071.0,0.108611]
[1732023061020,0.01,92080.0,92071.0,0.108611]